fUSD/lending_fUSD_20260219
["ID","MTS","AMOUNT","RATE_DAILY","PERIOD"]
[405972899,1771487444734,-861.0,8.603e-05,2]
[405972900,1771487444743,-500.0,8.603e-05,2]
[405972901,1771487444753,-935.0,8.603e-05,2]
[405972902,1771487444763,-500.0,8.603e-05,2]
[405972903,1771487444772,-1087.0,8.603e-05,2]
[405972904,1771487444781,-694.0,8.603e-05,2]
[405972905,1771487444791,-922.0,8.603e-05,2]
[405972906,1771487444800,-502.0,8.603e-05,2]
[405972907,1771487444810,-478.0,8.603e-05,2]
[405972908,1771487444819,-500.0,8.603e-05,2]
[405972909,1771487444829,-1532.32,8.641e-05,2]
[405972910,1771487444839,-587.12625063,8.643e-05,2]
[405972911,1771487444848,-500.0,8.643e-05,2]
[405972912,1771487444858,-500.0,8.643e-05,2]
[405972913,1771487444867,-500.0,8.643e-05,2]
[405972914,1771487444877,-500.17714761,8.643e-05,2]
[405972915,1771487444886,-500.0,8.643e-05,2]
[405972916,1771487444895,-500.0,8.643e-05,2]
[405972917,1771487444904,-514.18029449,8.643e-05,2]
[405972918,1771487444914,-200.77170516,8.643e-05,2]
[405972919,1771487444924,-500.0,8.643e-05,2]
[405972920,1771487444933,-862.28603014,8.649e-05,2]
[405972921,1771487444943,-500.0,8.657e-05,2]
[405972922,1771487444953,-1212.0,8.657e-05,2]
[405972923,1771487444962,-1055.0,8.657e-05,2]
[405972924,1771487444972,-861.0,8.657e-05,2]
[405972925,1771487444981,-500.0,8.657e-05,2]
[405972926,1771487444990,-935.0,8.657e-05,2]
[405972927,1771487445000,-500.0,8.657e-05,2]
[405972928,1771487445010,-1087.0,8.657e-05,2]
[405972929,1771487445019,-694.0,8.657e-05,2]
[405972930,1771487445029,-922.0,8.657e-05,2]
[405972931,1771487445039,-502.0,8.657e-05,2]
[405972932,1771487445049,-478.0,8.657e-05,2]
[405972933,1771487445059,-204.85338309,8.657e-05,2]
[405972934,1771487445067,-250.77,8.676e-05,2]
[405972935,1771487445077,-1461.91485088,8.698e-05,2]
[405972936,1771487445087,-894.19061326,8.704e-05,2]
[405972937,1771487445099,-1212.0,8.712e-05,2]
[405972938,1771487445109,-1055.0,8.712e-05,2]
[405972939,1771487445118,-861.0,8.712e-05,2]
[405972940,1771487445127,-935.0,8.712e-05,2]
[405972941,1771487445138,-500.0,8.712e-05,2]
[405972942,1771487445147,-1087.0,8.712e-05,2]
[405972943,1771487445156,-694.0,8.712e-05,2]
[405972944,1771487445167,-922.0,8.712e-05,2]
[405972945,1771487445176,-502.0,8.712e-05,2]
[405972946,1771487445185,-478.0,8.712e-05,2]
[405972947,1771487445195,-927.27566595,8.759e-05,2]
[405972948,1771487445204,-166.66,8.764e-05,2]
[405972949,1771487445213,-1212.0,8.767e-05,2]
[405972950,1771487445223,-1055.0,8.767e-05,2]
[405972951,1771487445232,-861.0,8.767e-05,2]
[405972952,1771487445241,-935.0,8.767e-05,2]
[405972953,1771487445251,-500.0,8.767e-05,2]
[405972954,1771487445260,-1087.0,8.767e-05,2]
[405972955,1771487445269,-694.0,8.767e-05,2]
[405972956,1771487445278,-922.0,8.767e-05,2]
[405972957,1771487445287,-502.0,8.767e-05,2]
[405972958,1771487445297,-478.0,8.767e-05,2]
[405972959,1771487445306,-961.58486559,8.814e-05,2]
[405972960,1771487445315,-1212.0,8.822e-05,2]
[405972961,1771487445324,-1055.0,8.822e-05,2]
[405972962,1771487445334,-861.0,8.822e-05,2]
[405972963,1771487445343,-935.0,8.822e-05,2]
[405972964,1771487445352,-500.0,8.822e-05,2]
[405972965,1771487445362,-1087.0,8.822e-05,2]
[405972966,1771487445371,-694.0,8.822e-05,2]
[405972967,1771487445381,-922.0,8.822e-05,2]
[405972968,1771487445391,-502.0,8.822e-05,2]
[405972969,1771487445400,-478.0,8.822e-05,2]
[405972970,1771487445410,-181.08010149,8.867e-05,2]
[405972971,1771487445420,-287.61899177,8.867e-05,2]
[405972972,1771487445430,-997.16350561,8.869e-05,2]
[405972973,1771487445442,-1212.0,8.877e-05,2]
[405972974,1771487445452,-1055.0,8.877e-05,2]
[405972975,1771487445462,-861.0,8.877e-05,2]
[405972976,1771487445472,-935.0,8.877e-05,2]
[405972977,1771487445482,-500.0,8.877e-05,2]
[405972978,1771487445492,-1087.0,8.877e-05,2]
[405972979,1771487445502,-694.0,8.877e-05,2]
[405972980,1771487445511,-922.0,8.877e-05,2]
[405972981,1771487445521,-502.0,8.877e-05,2]
[405972982,1771487445531,-478.0,8.877e-05,2]
[405972983,1771487445540,-1212.0,8.931e-05,2]
[405972984,1771487445550,-1055.0,8.931e-05,2]
[405972985,1771487445559,-861.0,8.931e-05,2]
[405972986,1771487445568,-935.0,8.931e-05,2]
[405972987,1771487445578,-500.0,8.931e-05,2]
[405972988,1771487445587,-1087.0,8.931e-05,2]
[405972989,1771487445597,-694.0,8.931e-05,2]
[405972990,1771487445607,-922.0,8.931e-05,2]
[405972991,1771487445616,-502.0,8.931e-05,2]
[405972992,1771487445626,-478.0,8.931e-05,2]
[405972993,1771487445635,-1212.0,8.986e-05,2]
[405972994,1771487445644,-1055.0,8.986e-05,2]
[405972995,1771487445654,-861.0,8.986e-05,2]
[405972996,1771487445664,-935.0,8.986e-05,2]
[405972997,1771487445673,-500.0,8.986e-05,2]
[405972998,1771487445683,-1087.0,8.986e-05,2]
[405972999,1771487445692,-694.0,8.986e-05,2]
[405973000,1771487445702,-922.0,8.986e-05,2]
[405973001,1771487445714,-502.0,8.986e-05,2]
[405973002,1771487445723,-478.0,8.986e-05,2]
[405973003,1771487445732,-5000.0,9e-05,2]
[405973004,1771487445741,-1212.0,9.041e-05,2]
[405973005,1771487445750,-1055.0,9.041e-05,2]
[405973006,1771487445760,-861.0,9.041e-05,2]
[405973007,1771487445770,-935.0,9.041e-05,2]
[405973008,1771487445780,-500.0,9.041e-05,2]
[405973009,1771487445789,-1087.0,9.041e-05,2]
[405973010,1771487445799,-694.0,9.041e-05,2]
[405973011,1771487445808,-922.0,9.041e-05,2]
[405973012,1771487445817,-502.0,9.041e-05,2]
[405973013,1771487445827,-478.0,9.041e-05,2]
[405973014,1771487445837,-153.0,9.074e-05,2]
[405973015,1771487445847,-153.0,9.074e-05,2]
[405973016,1771487445856,-1509.0,9.074e-05,2]
[405973018,1771487445865,-153.0,9.074e-05,2]
[405973033,1771487445875,-1509.0,9.074e-05,2]
[405973034,1771487446039,-153.0,9.074e-05,2]
[405973035,1771487446049,-1509.0,9.074e-05,2]
[405973036,1771487446058,-153.0,9.074e-05,2]
[405973037,1771487446067,-1509.0,9.074e-05,2]
[405973038,1771487446076,-153.0,9.074e-05,2]
[405973039,1771487446085,-1509.0,9.074e-05,2]
[405973040,1771487446098,-1509.0,9.074e-05,2]
[405973041,1771487446106,-1509.0,9.074e-05,2]
[405973042,1771487446115,-1509.0,9.074e-05,2]
[405973043,1771487446125,-152.0,9.074e-05,2]
[405973044,1771487446134,-1509.0,9.074e-05,2]
[405973045,1771487446143,-152.0,9.074e-05,2]
[405973046,1771487446152,-1509.0,9.074e-05,2]
[405973047,1771487446161,-152.0,9.074e-05,2]
[405973048,1771487446171,-1509.0,9.074e-05,2]
[405973049,1771487446180,-1509.0,9.074e-05,2]
[405973050,1771487446189,-152.0,9.074e-05,2]
[405973051,1771487446199,-1509.0,9.074e-05,2]
[405973052,1771487446208,-152.0,9.074e-05,2]
[405973053,1771487446222,-1509.0,9.074e-05,2]
[405973054,1771487446231,-152.0,9.074e-05,2]
[405973055,1771487446240,-1509.0,9.074e-05,2]
[405973056,1771487446251,-152.0,9.074e-05,2]
[405973057,1771487446260,-1509.0,9.074e-05,2]
[405973058,1771487446269,-152.0,9.074e-05,2]
[405973059,1771487446278,-1509.0,9.074e-05,2]
[405973060,1771487446286,-152.0,9.074e-05,2]
[405973061,1771487446296,-1509.0,9.074e-05,2]
[405973062,1771487446304,-152.0,9.074e-05,2]
[405973063,1771487446314,-1509.0,9.074e-05,2]
[405973064,1771487446324,-152.0,9.074e-05,2]
[405973065,1771487446336,-1509.0,9.074e-05,2]
[405973066,1771487446347,-152.0,9.074e-05,2]
[405973067,1771487446356,-1509.0,9.074e-05,2]
[405973068,1771487446365,-152.0,9.074e-05,2]
[405973069,1771487446375,-1509.0,9.074e-05,2]
[405973070,1771487446384,-152.0,9.074e-05,2]
[405973071,1771487446393,-152.0,9.074e-05,2]
[405973072,1771487446402,-152.0,9.074e-05,2]
[405973074,1771487446411,-152.0,9.074e-05,2]
[405973075,1771487446421,-1509.0,9.074e-05,2]
[405973076,1771487446431,-1509.0,9.074e-05,2]
[405973077,1771487446440,-1509.0,9.074e-05,2]
[405973078,1771487446450,-1509.0,9.074e-05,2]
[405973079,1771487446459,-1509.0,9.074e-05,2]
[405973080,1771487446468,-1509.0,9.074e-05,2]
[405973081,1771487446478,-166.66,9.086e-05,2]
[405973082,1771487446488,-1212.0,9.096e-05,2]
[405973083,1771487446497,-1055.0,9.096e-05,2]
[405973084,1771487446507,-861.0,9.096e-05,2]
[405973085,1771487446516,-935.0,9.096e-05,2]
[405973086,1771487446526,-500.0,9.096e-05,2]
[405973087,1771487446535,-1087.0,9.096e-05,2]
[405973088,1771487446545,-694.0,9.096e-05,2]
[405973089,1771487446554,-922.0,9.096e-05,2]
[405973090,1771487446564,-502.0,9.096e-05,2]
[405973091,1771487446573,-478.0,9.096e-05,2]
[405973092,1771487446583,-250.77,9.132e-05,2]
[405973093,1771487446592,-166.67,9.147e-05,2]
[405973094,1771487446602,-1212.0,9.151e-05,2]
[405973095,1771487446612,-1055.0,9.151e-05,2]
[405973096,1771487446622,-861.0,9.151e-05,2]
[405973097,1771487446632,-935.0,9.151e-05,2]
[405973098,1771487446641,-1087.0,9.151e-05,2]
[405973099,1771487446651,-694.0,9.151e-05,2]
[405973100,1771487446660,-922.0,9.151e-05,2]
[405973101,1771487446669,-502.0,9.151e-05,2]
[405973102,1771487446678,-478.0,9.151e-05,2]
[405973103,1771487446687,-1000.0,9.191e-05,2]
[405973104,1771487446697,-1000.0,9.191e-05,2]
[405973105,1771487446706,-1000.0,9.191e-05,2]
[405973106,1771487446715,-1000.0,9.191e-05,2]
[405973107,1771487446724,-1000.0,9.191e-05,2]
[405973108,1771487446734,-1000.0,9.191e-05,2]
[405973109,1771487446743,-1212.0,9.205e-05,2]
[405973110,1771487446753,-1055.0,9.205e-05,2]
[405973111,1771487446762,-861.0,9.205e-05,2]
[405973112,1771487446771,-935.0,9.205e-05,2]
[405973113,1771487446781,-1087.0,9.205e-05,2]
[405973114,1771487446790,-694.0,9.205e-05,2]
[405973115,1771487446799,-922.0,9.205e-05,2]
[405973116,1771487446808,-502.0,9.205e-05,2]
[405973117,1771487446818,-478.0,9.205e-05,2]
[405973118,1771487446828,-1000.0,9.247e-05,2]
[405973119,1771487446837,-1212.0,9.26e-05,2]
[405973120,1771487446848,-1055.0,9.26e-05,2]
[405973121,1771487446858,-861.0,9.26e-05,2]
[405973122,1771487446867,-935.0,9.26e-05,2]
[405973123,1771487446877,-1087.0,9.26e-05,2]
[405973124,1771487446886,-694.0,9.26e-05,2]
[405973125,1771487446895,-922.0,9.26e-05,2]
[405973126,1771487446904,-502.0,9.26e-05,2]
[405973127,1771487446914,-478.0,9.26e-05,2]
[405973128,1771487446923,-30587.37955272,9.304e-05,2]
[405973129,1771487446932,-736.0,9.314e-05,2]
[405973130,1771487446941,-1212.0,9.315e-05,2]
[405973131,1771487446951,-1055.0,9.315e-05,2]
[405973132,1771487446960,-861.0,9.315e-05,2]
[405973133,1771487446969,-935.0,9.315e-05,2]
[405973134,1771487446978,-1087.0,9.315e-05,2]
[405973135,1771487446988,-694.0,9.315e-05,2]
[405973136,1771487446998,-922.0,9.315e-05,2]
[405973137,1771487447008,-502.0,9.315e-05,2]
[405973138,1771487447018,-478.0,9.315e-05,2]
[405973139,1771487447027,-155.0,9.359e-05,2]
[405973140,1771487447036,-1212.0,9.37e-05,2]
[405973141,1771487447045,-1055.0,9.37e-05,2]
[405973142,1771487447055,-861.0,9.37e-05,2]
[405973143,1771487447065,-935.0,9.37e-05,2]
[405973144,1771487447074,-1087.0,9.37e-05,2]
[405973145,1771487447084,-694.0,9.37e-05,2]
[405973146,1771487447096,-922.0,9.37e-05,2]
[405973147,1771487447106,-502.0,9.37e-05,2]
[405973148,1771487447116,-478.0,9.37e-05,2]
[405973149,1771487447127,-187.78006525,9.415e-05,2]
[405973150,1771487447138,-298.26089446,9.415e-05,2]
[405973151,1771487447147,-1212.0,9.424e-05,2]
[405973152,1771487447156,-1055.0,9.424e-05,2]
[405973153,1771487447167,-861.0,9.424e-05,2]
[405973154,1771487447176,-935.0,9.424e-05,2]
[405973155,1771487447185,-1087.0,9.424e-05,2]
[405973157,1771487447195,-694.0,9.424e-05,2]
[405973158,1771487447205,-922.0,9.424e-05,2]
[405973159,1771487447214,-502.0,9.424e-05,2]
[405973160,1771487447223,-478.0,9.424e-05,2]
[405973161,1771487447233,-1229.79717779,9.479e-05,2]
[405973162,1771487447242,-1071.613494,9.479e-05,2]
[405973163,1771487447252,-868.10829242,9.479e-05,2]
[405973164,1771487447261,-949.55105984,9.479e-05,2]
[405973165,1771487447270,-1096.44978883,9.479e-05,2]
[405973166,1771487447279,-694.07347656,9.479e-05,2]
[405973167,1771487447288,-931.53612921,9.479e-05,2]
[405973168,1771487447298,-522.64462139,9.479e-05,2]
[405973169,1771487447308,-491.12713526,9.479e-05,2]
[405973170,1771487447318,-238.550456,9.494e-05,2]
[405973171,1771487447328,-1532.32,9.505e-05,2]
[405973172,1771487447338,-250.77,9.589e-05,2]
[405973173,1771487447347,-9999.99,9.67e-05,2]
[405973174,1771487447356,-23740.55,9.67e-05,2]
[405973175,1771487447365,-168.3888056,9.688e-05,2]
[405973176,1771487447374,-325.85164995,9.698e-05,2]
[405973177,1771487447384,-273.56261618,9.717e-05,2]
[405973178,1771487447393,-1500.0,9.738e-05,2]
[405973179,1771487447402,-1500.0,9.738e-05,2]
[405973180,1771487447411,-1500.0,9.738e-05,2]
[405973181,1771487447420,-1002.28837748,9.738e-05,2]
[405973182,1771487447430,-1500.0,9.738e-05,2]
[405973183,1771487447439,-1441.94307956,9.738e-05,2]
[405973184,1771487447449,-500.0,9.949e-05,2]
[405973185,1771487447458,-411.19534171,9.949e-05,2]
[405973186,1771487447467,-500.0,9.949e-05,2]
[405973187,1771487447477,-181.96455218,9.949e-05,2]
[405973188,1771487447486,-350.64550596,9.949e-05,2]
[405973189,1771487447495,-500.0,9.949e-05,2]
[405973190,1771487447505,-500.0,9.949e-05,2]
[405973191,1771487447514,-500.0,9.949e-05,2]
[405973192,1771487447523,-500.0,9.949e-05,2]
[405973193,1771487447533,-500.0,9.949e-05,2]
[405973194,1771487447542,-500.0,9.949e-05,2]
[405973195,1771487447553,-500.0,9.949e-05,2]
[405973196,1771487447562,-104716.66114597,9.95e-05,2]
[405973197,1771487447572,-194.72792766,9.963e-05,2]
[405973198,1771487447581,-309.29654756,9.963e-05,2]
[405973199,1771487447590,-1937.31028197,0.0001,2]
[405973200,1771487447600,-777.3678686,0.0001,2]
[405973201,1771487447610,-151.0,0.0001,2]
[405973202,1771487447619,-1000.0,0.0001,2]
[405973203,1771487447628,-528.14192823,0.0001,2]
[405973204,1771487447637,-500.0,0.0001,2]
[405973205,1771487447647,-500.0,0.0001,2]
[405973206,1771487447656,-151.0,0.0001,2]
[405973207,1771487447665,-500.0,0.0001,2]
[405973208,1771487447674,-151.0,0.0001,2]
[405973209,1771487447683,-500.0,0.0001,2]
[405973210,1771487447692,-151.0,0.0001,2]
[405973211,1771487447702,-500.0,0.0001,2]
[405973212,1771487447711,-151.0,0.0001,2]
[405973213,1771487447720,-500.0,0.0001,2]
[405973214,1771487447730,-500.0,0.0001,2]
[405973215,1771487447739,-151.0,0.0001,2]
[405973216,1771487447748,-500.0,0.0001,2]
[405973217,1771487447757,-500.0,0.0001,2]
[405973218,1771487447767,-500.0,0.0001,2]
[405973219,1771487447776,-500.0,0.0001,2]
[405973220,1771487447786,-151.0,0.0001,2]
[405973221,1771487447795,-500.0,0.0001,2]
[405973222,1771487447805,-500.0,0.0001,2]
[405973223,1771487447814,-151.0,0.0001,2]
[405973224,1771487447823,-500.0,0.0001,2]
[405973225,1771487447832,-500.0,0.0001,2]
[405973226,1771487447841,-151.0,0.0001,2]
[405973227,1771487447851,-500.0,0.0001,2]
[405973228,1771487447860,-500.0,0.0001,2]
[405973229,1771487447869,-151.0,0.0001,2]
[405973230,1771487447878,-500.0,0.0001,2]
[405973231,1771487447888,-151.0,0.0001,2]
[405973232,1771487447897,-500.0,0.0001,2]
[405973233,1771487447906,-151.0,0.0001,2]
[405973234,1771487447915,-500.0,0.0001,2]
[405973235,1771487447926,-500.0,0.0001,2]
[405973236,1771487447935,-500.0,0.0001,2]
[405973237,1771487447944,-200.0,0.0001,2]
[405973238,1771487447954,-151.0,0.0001,2]
[405973239,1771487447964,-151.0,0.0001,2]
[405973240,1771487447973,-151.0,0.0001,2]
[405973241,1771487447982,-151.0,0.0001,2]
[405973242,1771487447991,-151.0,0.0001,2]
[405973243,1771487448000,-151.0,0.0001,2]
[405973244,1771487448010,-151.0,0.0001,2]
[405973245,1771487448019,-151.0,0.0001,2]
[405973246,1771487448028,-151.0,0.0001,2]
[405973247,1771487448038,-151.0,0.0001,2]
[405973248,1771487448047,-151.0,0.0001,2]
[405973249,1771487448056,-151.0,0.0001,2]
[405973250,1771487448065,-151.0,0.0001,2]
[405973251,1771487448074,-151.0,0.0001,2]
[405973252,1771487448084,-151.0,0.0001,2]
[405973253,1771487448094,-151.0,0.0001,2]
[405973254,1771487448106,-151.0,0.0001,2]
[405973255,1771487448115,-151.0,0.0001,2]
[405973256,1771487448124,-151.0,0.0001,2]
[405973257,1771487448133,-151.0,0.0001,2]
[405973258,1771487448145,-201.42323082,0.0001,2]
[405973259,1771487448155,-503.49339626,0.0001,2]
[405973260,1771487448164,-200.0,0.0001,2]
[405973261,1771487448173,-745.07507322,0.0001,2]
[405973262,1771487448183,-905.82431785,0.0001,2]
[405973263,1771487448192,-2000.0,0.0001,2]
[405973264,1771487448201,-2000.0,0.0001,2]
[405973265,1771487448211,-2000.0,0.0001,2]
[405973266,1771487448221,-2000.0,0.0001,2]
[405973267,1771487448231,-2000.0,0.0001,2]
[405973268,1771487448242,-2000.0,0.0001,2]
[405973269,1771487448252,-250.77,0.00010046,2]
[405973270,1771487448261,-162.754,0.00010195,2]
[405973271,1771487448270,-640.315,0.00010195,2]
[405973272,1771487448279,-3500.756,0.00010195,2]
[405973273,1771487448288,-1351.773,0.00010195,2]
[405973274,1771487448297,-1164.0,0.00010195,2]
[405973275,1771487448306,-1275.0,0.00010195,2]
[405973276,1771487448315,-1222.063,0.00010195,2]
[405973277,1771487448325,-268.01,0.00010195,2]
[405973279,1771487448334,-413.0,0.00010195,2]
[405973280,1771487448343,-2453.0,0.00010195,2]
[405973281,1771487448353,-920.685,0.00010195,2]
[405973282,1771487448362,-1252.0,0.00010245,2]
[405973283,1771487448371,-1000.0,0.00010274,2]
[405973284,1771487448381,-1504.36113383,0.00010286,2]
[405973285,1771487448391,-2000.0,0.00010286,2]
[405973286,1771487448400,-2000.0,0.00010286,2]
[405973287,1771487448410,-2000.0,0.00010286,2]
[405973288,1771487448419,-1532.32,0.0001037,2]
[405973289,1771487448428,-250.77,0.00010502,2]
[405973290,1771487448437,-201.93286099,0.00010511,2]
[405973291,1771487448448,-320.74051982,0.00010511,2]
[405973292,1771487448457,-1905.055649,0.00010529,2]
[405973293,1771487448466,-3759.681454,0.00010542,2]
[405973294,1771487448475,-200.0,0.00010548,2]
[405973295,1771487448485,-215.0,0.0001064,2]
[405973296,1771487448494,-269.0,0.0001064,2]
[405973297,1771487448503,-200.0,0.0001064,2]
[405973298,1771487448512,-172.251,0.0001064,2]
[405973299,1771487448522,-150.0,0.0001064,2]
[405973300,1771487448531,-150.097,0.0001064,2]
[405973301,1771487448540,-150.0,0.0001064,2]
[405973302,1771487448550,-150.031,0.0001064,2]
[405973303,1771487448560,-150.0,0.0001064,2]
[405973304,1771487448569,-150.0,0.0001064,2]
[405973305,1771487448579,-150.0,0.0001064,2]
[405973306,1771487448588,-150.079,0.0001064,2]
[405973307,1771487448597,-184.17,0.00010667,2]
[405973308,1771487448606,-269.11799999,0.000107,2]
[405973309,1771487448615,-359.72,0.00010731,2]
[405973310,1771487448624,-1031.02028374,0.000108,2]
[405973311,1771487448634,-257.9,0.00010813,2]
[405973312,1771487448643,-2500.0,0.00010834,2]
[405973313,1771487448653,-2101.16676127,0.00010834,2]
[405973314,1771487448662,-2500.0,0.00010834,2]
[405973315,1771487448671,-2189.17567558,0.000109,2]
[405973316,1771487448680,-2189.17567554,0.000109,2]
[405973317,1771487448689,-2189.17567554,0.000109,2]
[405973318,1771487448698,-155.0,0.00010919,2]
[405973319,1771487448707,-200.0,0.00010959,2]
[405973320,1771487448716,-200.0,0.00010959,2]
[405973321,1771487448725,-200.0,0.00010959,2]
[405973322,1771487448735,-200.0,0.00010959,2]
[405973323,1771487448744,-150.0,0.00010959,2]
[405973324,1771487448754,-150.0,0.00010959,2]
[405973325,1771487448763,-166.66,0.00010959,2]
[405973326,1771487448772,-151.0,0.00010959,2]
[405973327,1771487448781,-151.0,0.00010959,2]
[405973328,1771487448790,-250.77,0.00010959,2]
[405973329,1771487448800,-9453.16753918,0.00011,2]
[405973330,1771487448809,-174.61919141,0.00011057,2]
[405973331,1771487448821,-599.60298507,0.00011058,2]
[405973332,1771487448830,-747.8093786,0.00011058,2]
[405973333,1771487448839,-209.40437684,0.00011059,2]
[405973334,1771487448848,-461.91404194,0.00011059,2]
[405973335,1771487448857,-166.66,0.00011068,2]
[405973336,1771487448867,-200.0,0.00011096,2]
[405973337,1771487449025,-9643.39114177,0.00011099,2]
[405973338,1771487449035,-9643.39114173,0.00011099,2]
[405973339,1771487449044,-9643.39114173,0.00011099,2]
[405973340,1771487449054,-9643.39114173,0.00011099,2]
[405973341,1771487449064,-9643.39114173,0.00011099,2]
[405973342,1771487449073,-9643.39114173,0.00011099,2]
[405973343,1771487449082,-150.0,0.0001111,2]
[405973344,1771487449092,-150.0,0.0001111,7]
[405973345,1771487449106,-166.66,0.00011178,2]
[405973346,1771487449116,-523.67330146,0.00011198,2]
[405973347,1771487449125,-12599.79,0.00011233,2]
[405973348,1771487449135,-150.0,0.00011233,2]
[405973349,1771487449144,-1025.0,0.00011274,2]
[405973350,1771487449154,-166.66,0.00011288,2]
[405973351,1771487449163,-1000.0,0.00011301,2]
[405973352,1771487449173,-3000.0,0.00011382,2]
[405973353,1771487449182,-3000.0,0.00011382,2]
[405973354,1771487449191,-166.66,0.00011397,2]
[405973355,1771487449204,-249.73,0.00011404,2]
[405973356,1771487449216,-250.77,0.00011416,2]
[405973357,1771487449225,-1321.9,0.00011507,2]
[405973358,1771487449234,-166.66,0.00011507,2]
[405973359,1771487449243,-9643.39114173,0.00011582,2]
[405973360,1771487449253,-303.0,0.000116,2]
[405973361,1771487449262,-989.0,0.000116,2]
[405973362,1771487449271,-309.0,0.000116,2]
[405973363,1771487449280,-200.0,0.000116,2]
[405973364,1771487449289,-217.15233878,0.00011607,2]
[405973365,1771487449299,-2189.17567554,0.0001164,2]
[405973366,1771487449308,-201.70363025,0.00011644,2]
[405973367,1771487449318,-28883.24864978,0.00011746,2]
[405973368,1771487449327,-250.77,0.00011872,2]
[405973369,1771487449336,-3500.0,0.0001193,2]
[405973370,1771487449346,-1590.48855903,0.0001193,2]
[405973371,1771487449355,-159.0,0.00011988,2]
[405973372,1771487449364,-159.30004279,0.00011988,2]
[405973373,1771487449373,-1509.0,0.00011988,2]
[405973374,1771487449382,-319.20341419,0.00012,2]
[405973375,1771487449392,-184.17,0.00012144,2]
[405973376,1771487449402,-225.18697532,0.00012155,2]
[405973377,1771487449412,-359.72,0.00012215,2]
[405973378,1771487449422,-257.9,0.00012257,2]
[405973379,1771487449431,-1000.0,0.00012329,2]
[405973380,1771487449441,-250.77,0.00012329,2]
[405973381,1771487449453,-905.82431785,0.00012345,2]
[405973382,1771487449463,-9643.39114173,0.00012354,2]
[405973383,1771487449472,-745.07507321,0.00012423,2]
[405973384,1771487449483,-2661.12626241,0.00012423,2]
[405973385,1771487449493,-181.08010149,0.00012426,2]
[405973386,1771487449503,-4000.0,0.00012478,2]
[405973387,1771487449514,-28883.24864978,0.00012547,2]
[405973388,1771487449523,-1000.0,0.00012693,2]
[405973389,1771487449533,-233.51889341,0.00012703,2]
[405973390,1771487449543,-173.66088786,0.00012823,2]
[405973391,1771487449553,-160.0,0.00012823,2]
[405973392,1771487449563,-200877.0,0.000129,2]
[405973393,1771487449572,-1611.79079623,0.00012962,2]
[405973394,1771487449582,-509.42558155,0.00013,2]
[405973395,1771487449592,-500.0,0.00013,2]
[405973396,1771487449601,-511.97204466,0.00013,2]
[405973397,1771487449611,-500.0,0.00013,2]
[405973398,1771487449620,-500.0,0.00013,2]
[405973399,1771487449630,-820.71253625,0.00013,2]
[405973400,1771487449640,-782.04703933,0.00013004,2]
[405973401,1771487449649,-10883.65390547,0.0001301,2]
[405973402,1771487449658,-1000.0,0.0001301,2]
[405973403,1771487449668,-4500.0,0.00013026,2]
[405973404,1771487449677,-1000.0,0.00013067,2]
[405973405,1771487449687,-1000.0,0.0001307,2]
[405973406,1771487449699,-1000.0,0.00013075,2]
[405973407,1771487449709,-268.63179937,0.00013079,2]
[405973408,1771487449719,-1000.0,0.00013105,2]
[405973409,1771487449728,-9643.39114173,0.00013127,2]
[405973410,1771487449737,-1000.0,0.00013135,2]
[405973411,1771487449747,-1000.0,0.00013158,2]
[405973412,1771487449756,-1000.0,0.00013185,2]
[405973413,1771487449766,-1000.0,0.00013191,2]
[405973414,1771487449778,-617.0,0.00013195,2]
[405973415,1771487449787,-3492.0,0.00013195,2]
[405973416,1771487449797,-1338.0,0.00013195,2]